bitfinex/quotes_SOLUSD_20240824
["timestamp","ask_amount","ask_price","bid_price","bid_amount"]
[1724495589333,26.304,158.63,158.55,24.53368931]
[1724495589334,15.3969,158.64,158.55,24.53368931]
[1724495590239,15.3969,158.64,158.6,6.305]
[1724495590435,15.3969,158.64,158.61,6.3047]
[1724495590653,22.7776,158.68,158.63,6.3039]
[1724495590979,22.7776,158.68,158.57,24.53368931]
[1724495591255,6.3031,158.66,158.61,6.3046]
[1724495591960,1.52424922,158.65,158.55,24.53368931]
[1724495592165,6.3041,158.63,158.58,6.3056]
[1724495592570,17.28234922,158.65,158.53,39.34108931]
[1724495592870,45.0,158.64,158.53,39.34108931]
[1724495593165,6.3036,158.64,158.59,6.3055]
[1724495593333,7.82784922,158.64,158.59,6.3055]
[1724495594059,6.3032,158.65,158.6,6.305]
[1724495594440,6.3028,158.66,158.61,6.3047]
[1724495595354,6.3024,158.67,158.62,6.3042]
[1724495595586,6.3027,158.66,158.62,6.3042]
[1724495596439,6.3024,158.67,158.62,6.3042]
[1724495596852,6.3015,158.7,158.63,0.99790823]
[1724495597051,6.3015,158.7,158.61,1.26052506]
[1724495598066,6.3015,158.7,158.65,6.303]
[1724495598259,15.7634,158.72,158.63,6.3035]
[1724495598260,6.302,158.68,158.63,6.3035]
[1724495598565,24.53368931,158.7,158.63,6.3035]
[1724495598768,6.302,158.68,158.63,6.3035]
[1724495601244,24.53368931,158.7,158.59,6.0195]
[1724495601245,1.52424922,158.7,158.59,6.0195]
[1724495601676,6.58509104,158.69,158.59,6.0195]
[1724495601878,7.82624922,158.68,158.63,6.3036]
[1724495602177,1.52424922,158.67,158.64,6.3035]
[1724495602485,6.3022,158.68,158.63,6.3038]
[1724495602678,6.3028,158.66,158.61,6.3044]
[1724495602877,1.52424922,158.67,158.57,1.57844037]
[1724495603172,7.82664922,158.67,158.63,6.3039]
[1724495603567,1.52424922,158.67,158.63,6.3039]
[1724495605249,6.302,158.68,158.64,6.3035]
[1724495605676,1.52424922,158.67,158.63,6.3039]
[1724495605861,6.302,158.68,158.63,6.3039]
[1724495606049,1.52424922,158.67,158.63,6.3039]
[1724495606455,1.52424922,158.67,158.58,24.53368931]
[1724495606456,6.3016,158.69,158.58,22.83708831]
[1724495607962,7.82624922,158.68,158.63,6.3036]
[1724495608263,6.302,158.68,158.64,6.3035]
[1724495608468,1.52424922,158.69,158.57,44.65917931]
[1724495608666,1.52424922,158.67,158.57,44.65917931]
[1724495609484,1.52424922,158.67,158.63,6.3038]
[1724495609672,6.3021,158.68,158.63,6.3038]
[1724495609879,1.52424922,158.67,158.64,6.3033]
[1724495610067,7.82584922,158.69,158.64,6.3033]
[1724495611371,6.302,158.68,158.64,6.3033]
[1724495611679,1.52424922,158.67,158.63,6.3038]
[1724495612381,7.82664922,158.67,158.62,6.3043]
[1724495612566,1.52424922,158.66,158.62,6.3043]
[1724495613168,6.3024,158.67,158.62,6.3043]
[1724495613762,7.82714922,158.66,158.62,6.3043]
[1724495614061,1.52424922,158.66,158.62,6.3043]
[1724495615257,1.52424922,158.66,158.62,6.3043]
[1724495615464,6.3025,158.67,158.63,6.3039]
[1724495615682,7.82624922,158.68,158.63,6.3039]
[1724495616473,7.82654922,158.67,158.63,6.3039]
[1724495617687,1.52424922,158.66,158.63,6.3039]
[1724495618053,6.3023,158.67,158.63,6.3039]
[1724495618254,1.52424922,158.66,158.63,6.3039]
[1724495618458,1.52424922,158.66,158.62,6.3043]
[1724495618671,7.82714922,158.66,158.62,6.3043]
[1724495618887,1.52424922,158.65,158.62,6.3043]
[1724495619184,6.3024,158.67,158.62,6.3043]
[1724495619375,1.52424922,158.66,158.62,6.3043]
[1724495623579,7.82664922,158.67,158.62,6.3043]
[1724495624084,1.52424922,158.67,158.56,24.53368931]
[1724495624259,21.7958,158.66,158.57,3.52761309]
[1724495624462,23.32004922,158.66,158.55,30.76638931]
[1724495624661,23.32004922,158.66,158.56,3.52761309]
[1724495625477,7.82744922,158.65,158.6,6.3048]
[1724495625778,1.52424922,158.64,158.6,6.3048]
[1724495626165,1.52424922,158.64,158.61,6.3047]
[1724495626865,7.82744922,158.65,158.6,6.305]
[1724495627663,1.52424922,158.64,158.56,3.52925151]
[1724495627866,6.305,158.61,158.53,20.51657822]
[1724495628081,6.3044,158.62,158.57,6.3063]
[1724495628777,7.82864922,158.62,158.57,6.3063]
[1724495629104,6.3044,158.62,158.57,6.3063]
[1724495629260,6.3048,158.61,158.57,6.3063]
[1724495629672,6.3044,158.62,158.57,6.3063]
[1724495630095,6.3044,158.62,158.51,6.4452]
[1724495630096,6.3065,158.57,158.52,6.3082]
[1724495630267,11.31135334,158.61,158.53,6.3079]
[1724495630268,31.58570412,158.59,158.53,6.3079]
[1724495630469,1.52424922,158.58,158.5,9.78710412]
[1724495630666,1.52424922,158.58,158.53,6.3076]
[1724495630869,1.52424922,158.58,158.54,6.3075]
[1724495631384,31.58570412,158.59,158.55,6.3071]
[1724495631385,25.27980412,158.59,158.55,6.3071]
[1724495631574,15.4927,158.59,158.55,6.3071]
[1724495632293,21.7983,158.59,158.54,6.3075]
[1724495632480,6.3059,158.58,158.53,6.3075]
[1724495632681,21.7982,158.59,158.54,6.3074]
[1724495632995,1.52424922,158.58,158.54,6.3074]
[1724495633599,1.52424922,158.57,158.49,14.8074]
[1724495633797,15.4927,158.59,158.5,1.26150092]
[1724495634499,21.7982,158.59,158.54,6.3072]
[1724495635581,7.83014922,158.58,158.52,6.3079]
[1724495635776,6.3059,158.58,158.5,1.26150115]
[1724495636698,21.7983,158.59,158.54,6.3075]
[1724495636906,15.4927,158.59,158.55,6.3071]
[1724495637586,1.52424922,158.58,158.55,6.3071]
[1724495638112,15.4927,158.59,158.55,6.3071]
[1724495638113,17.01694922,158.59,158.55,6.3071]
[1724495638481,15.4927,158.59,158.56,6.3066]
[1724495638683,15.4927,158.59,158.51,24.47591232]
[1724495639199,15.4927,158.59,158.58,6.3059]
[1724495639405,6.2311,158.61,158.58,6.3059]
[1724495639714,6.2311,158.61,158.57,6.3062]
[1724495640391,6.2311,158.61,158.53,24.47591232]
[1724495641716,1.52424922,158.6,158.51,24.47591232]
[1724495641896,1.52424922,158.6,158.52,20.0]
[1724495642203,7.82954922,158.6,158.51,24.47591232]
[1724495642593,7.82954922,158.6,158.55,6.3068]
[1724495642819,7.82954922,158.6,158.51,24.47591232]
[1724495642820,1.52424922,158.6,158.56,6.3066]
[1724495643904,6.3055,158.6,158.54,6.3071]
[1724495644115,7.82974922,158.6,158.53,24.47591232]
[1724495644412,6.3055,158.6,158.55,6.3067]
[1724495644618,12.5358,158.61,158.57,6.3062]
[1724495644816,1.52424922,158.6,158.57,6.3062]
[1724495645116,12.5358,158.61,158.56,6.3066]
[1724495645297,6.3057,158.59,158.49,14.8074]
[1724495645485,1.52424922,158.58,158.5,20.0]
[1724495645686,1.52424922,158.58,158.49,20.0]
[1724495645886,1.52424922,158.57,158.54,6.3075]
[1724495646115,16.63514922,158.57,158.54,6.3075]
[1724495646714,15.1109,158.57,158.54,6.3075]
[1724495647802,21.4172,158.57,158.53,6.3079]
[1724495647997,22.94144922,158.57,158.53,6.3079]
[1724495648296,15.1109,158.64,158.55,24.47591232]
[1724495648613,15.1109,158.64,158.61,6.3047]
[1724495649820,1.52424922,158.63,158.6,6.3051]
[1724495650019,1.52424922,158.63,158.55,24.47591232]
[1724495650020,15.1109,158.64,158.61,6.3047]
[1724495653192,15.1109,158.64,158.63,6.3039]
[1724495653715,15.1109,158.64,158.62,6.3043]
[1724495657435,6.3024,158.67,158.62,21.1117]
[1724495657642,1.52424922,158.74,158.63,20.0]
[1724495657919,1.52424922,158.73,158.62,14.8074]
[1724495658136,6.3008,158.71,158.66,6.3024]
[1724495658300,1.52424922,158.7,158.66,6.3024]
[1724495659096,9.77680925,158.69,158.65,6.3028]
[1724495659311,15.1109,158.68,158.64,6.3035]
[1724495659530,1.52424922,158.67,158.64,6.3035]
[1724495659944,26.41195847,158.68,158.65,6.3031]
[1724495660112,26.41195847,158.68,158.66,6.3024]
[1724495660113,15.1109,158.68,158.66,6.3024]
[1724495663151,16.452,158.72,158.63,24.44722818]
[1724495663643,16.452,158.72,158.6,24.44722818]
[1724495663816,16.452,158.72,158.61,0.12549]
[1724495664143,1.52424922,158.71,158.61,0.12549]
[1724495664344,1.52424922,158.71,158.68,6.3016]
[1724495664713,16.452,158.72,158.68,6.3016]
[1724495665246,1.52424922,158.71,158.68,6.3016]
[1724495665740,16.452,158.72,158.68,6.3016]
[1724495666851,16.452,158.72,158.7,6.301]
[1724495667712,16.452,158.72,158.62,1.57807105]
[1724495667713,16.452,158.72,158.63,1.57807105]
[1724495667913,16.452,158.72,158.68,6.3016]
[1724495668517,16.452,158.72,158.61,1.82905105]
[1724495668518,1.52424922,158.71,158.61,1.82905105]
[1724495668718,1.52424922,158.71,158.61,21.70356105]
[1724495668944,17.97624922,158.72,158.68,6.3016]
[1724495669237,16.452,158.72,158.69,6.3014]
[1724495671024,16.452,158.72,158.7,6.3011]
[1724495673527,16.2944,158.72,158.7,6.3011]
[1724495674131,16.2944,158.72,158.62,30.89772818]
[1724495674329,16.2944,158.72,158.7,6.3011]
[1724495674529,16.2944,158.72,158.62,30.89772818]
[1724495674530,16.2944,158.72,158.62,6.4505]
[1724495674736,16.2944,158.72,158.63,20.0]
[1724495676146,16.2944,158.72,158.69,6.3015]
[1724495679358,6.3009,158.71,158.66,6.3024]
[1724495679567,1.52424922,158.7,158.66,6.3024]
[1724495680546,11.30282034,158.7,158.66,6.3024]
[1724495681453,11.30282034,158.7,158.67,6.3023]
[1724495681654,1.30282034,158.7,158.67,6.3023]
[1724495684131,9.77857112,158.71,158.68,6.3018]
[1724495685255,16.2944,158.72,158.69,6.3014]
[1724495686634,16.2944,158.72,158.68,6.3019]
[1724495688558,16.2944,158.72,158.69,6.3015]
[1724495689863,16.2944,158.72,158.63,1.57791961]
[1724495690042,16.2944,158.72,158.7,6.301]
[1724495693245,16.2944,158.72,158.71,6.3008]
[1724495695051,16.2944,158.72,158.7,6.301]
[1724495700691,16.2944,158.72,158.69,6.3014]
[1724495706067,16.2944,158.72,158.63,9.77857112]
[1724495706373,16.2944,158.72,158.64,0.25098]
[1724495706571,16.2944,158.72,158.64,0.12549]
[1724495706873,16.2944,158.72,158.63,9.77857112]
[1724495707451,16.2944,158.72,158.63,14.39001371]
[1724495710560,22.5948,158.72,158.62,9.77857112]
[1724495710871,16.2944,158.72,158.63,4.61172524]
[1724495711652,26.07297112,158.72,158.59,4.61172524]
[1724495711997,26.07297112,158.72,158.61,9.77857112]
[1724495712288,26.07297112,158.72,158.62,4.61172524]
[1724495712992,32.37347112,158.72,158.62,4.61172524]
[1724495713296,16.2944,158.72,158.63,14.51578636]
[1724495713598,16.2944,158.72,158.63,9.90406112]
[1724495713972,32.37337112,158.72,158.62,4.61214128]
[1724495714189,32.37337112,158.72,158.62,9.77857112]
[1724495714390,32.37337112,158.72,158.62,14.3907124]
[1724495714598,32.37337112,158.72,158.63,4.61214128]
[1724495714774,32.37337112,158.72,158.62,9.77857112]
[1724495714979,32.37337112,158.72,158.62,14.3907124]
[1724495715183,32.37337112,158.72,158.63,4.61214128]
[1724495715369,32.37337112,158.72,158.62,9.77857112]
[1724495715582,16.2944,158.72,158.63,4.61234474]
[1724495716292,22.5948,158.72,158.63,4.61234474]
[1724495716489,22.5948,158.72,158.62,9.77857112]
[1724495716677,22.5948,158.72,158.63,4.61234474]
[1724495718585,16.2944,158.72,158.63,4.61234474]
[1724495719082,22.5948,158.72,158.62,9.77857112]
[1724495719287,22.5948,158.72,158.62,14.39091586]
[1724495719473,22.5948,158.72,158.63,4.61234474]
[1724495719670,16.07957112,158.71,158.61,4.61234474]
[1724495719890,6.3022,158.68,158.61,4.61328779]
[1724495720091,9.77857112,158.69,158.6,0.12549]
[1724495720092,9.77857112,158.69,158.6,4.61328779]
[1724495720279,9.77857112,158.69,158.6,4.61489648]
[1724495720880,9.77857112,158.69,158.61,4.61489648]
[1724495721182,9.77857112,158.69,158.59,29.77857112]
[1724495721183,9.77857112,158.69,158.6,14.3934676]
[1724495721386,6.3008,158.71,158.6,14.3934676]
[1724495721609,9.77857112,158.7,158.6,14.3934676]
[1724495723214,16.07987112,158.7,158.6,14.3934676]
[1724495723399,16.07987112,158.7,158.61,4.61379472]
[1724495723600,9.77857112,158.7,158.6,9.77857112]
[1724495723904,9.77857112,158.7,158.6,14.39236584]
[1724495724102,16.07977112,158.7,158.6,14.39236584]
[1724495725104,16.07977112,158.7,158.62,9.77857112]
[1724495725397,9.77857112,158.7,158.62,9.77857112]
[1724495726177,16.07977112,158.7,158.62,9.77857112]
[1724495727000,6.3838,158.69,158.61,4.6145407]
[1724495727299,15.0351,158.68,158.61,9.77857112]
[1724495728078,15.0351,158.68,158.59,4.6147199]
[1724495728311,21.3371,158.68,158.61,9.77857112]
[1724495728492,21.3371,158.68,158.6,9.77857112]
[1724495728809,15.0351,158.68,158.61,1.26062663]
[1724495731608,15.0351,158.68,158.6,9.77857112]
[1724495732302,15.0351,158.68,158.58,4.61495588]
[1724495732709,21.3371,158.68,158.59,9.77857112]
[1724495733020,31.11567112,158.68,158.59,9.77857112]
[1724495736203,6.3024,158.67,158.58,14.39462465]
[1724495738688,6.3024,158.67,158.58,9.77857112]
[1724495740921,27.7217,158.66,158.58,9.77857112]
[1724495741328,21.4189,158.66,158.58,9.77857112]
[1724495744625,27.7217,158.66,158.57,9.77857112]
[1724495745002,21.4189,158.66,158.57,9.77857112]
[1724495747319,21.4189,158.66,158.59,9.77857112]
[1724495751423,21.4189,158.66,158.6,1.26083443]
[1724495751621,21.4189,158.66,158.59,9.77857112]
[1724495751834,21.4189,158.66,158.6,1.26083417]
[1724495752540,21.4189,158.66,158.59,9.77857112]
[1724495756841,21.4189,158.66,158.6,1.57837085]
[1724495757854,21.4189,158.66,158.59,9.77857112]
[1724495758629,21.4189,158.66,158.6,1.57837386]
[1724495758839,21.4189,158.66,158.59,9.77857112]
[1724495762749,21.4189,158.66,158.52,7.97825168]
[1724495763047,21.4189,158.66,158.58,9.77857112]
[1724495764239,21.4189,158.66,158.59,3.54050232]
[1724495766252,16.2869,158.65,158.57,20.0]
[1724495766549,16.2869,158.65,158.57,29.77857112]
[1724495766855,16.2869,158.65,158.58,3.54104163]
[1724495767056,16.2869,158.65,158.59,3.54104163]
[1724495767258,16.2869,158.65,158.58,4.6199679]
[1724495767552,16.2869,158.65,158.59,3.54117012]
[1724495767759,16.2869,158.65,158.58,4.61988318]
[1724495768058,16.2869,158.65,158.59,3.54123322]
[1724495768277,16.2869,158.65,158.6,1.26092141]
[1724495768442,16.2869,158.65,158.59,9.77857112]
[1724495770846,16.2869,158.65,158.58,4.61969147]
[1724495771159,16.2869,158.65,158.59,3.54076486]
[1724495771463,16.2869,158.65,158.58,9.23934384]
[1724495771635,16.2869,158.65,158.59,3.54094486]
[1724495771959,16.2869,158.65,158.58,9.23934384]
[1724495772259,16.2869,158.65,158.59,3.54103143]
[1724495772464,16.2869,158.65,158.58,9.23934384]
[1724495772663,16.2869,158.65,158.59,3.54131372]
[1724495772842,16.2869,158.65,158.58,9.23934384]
[1724495773155,16.2869,158.65,158.59,3.54130364]
[1724495773355,16.2869,158.65,158.58,4.61969147]
[1724495773548,16.2869,158.65,158.59,3.54189314]
[1724495773746,16.2869,158.65,158.58,4.61969147]
[1724495773941,16.2869,158.65,158.59,3.5419373]
[1724495774141,16.2869,158.65,158.58,4.61969147]
[1724495774341,16.2869,158.65,158.59,3.54230685]
[1724495774562,16.2869,158.65,158.58,4.61969147]
[1724495775554,16.2869,158.65,158.58,9.23974758]
[1724495778162,16.2869,158.65,158.59,9.77857112]
[1724495778365,16.2869,158.65,158.59,11.0393761]
[1724495778776,16.2869,158.65,158.57,20.0]
[1724495778980,16.2869,158.65,158.59,9.77857112]
[1724495779144,16.2869,158.65,158.58,4.62037783]
[1724495779344,16.2869,158.65,158.59,4.62037783]
[1724495779538,16.2869,158.65,158.57,29.77857112]
[1724495779539,16.2869,158.65,158.58,4.62037783]
[1724495779843,16.2869,158.65,158.57,29.77857112]
[1724495780150,16.2869,158.65,158.58,4.62050886]
[1724495780353,16.2869,158.65,158.59,4.62050886]
[1724495780548,16.2869,158.65,158.58,4.62050886]
[1724495780868,16.2869,158.65,158.59,4.62050886]
[1724495781038,16.2869,158.65,158.58,4.62050886]
[1724495781247,16.2869,158.65,158.59,4.62050886]
[1724495781467,16.2869,158.65,158.58,4.62050886]
[1724495781653,16.2869,158.65,158.59,4.62050886]
[1724495781863,16.2869,158.65,158.58,4.62050886]
[1724495782162,16.2869,158.65,158.59,4.6219483]
[1724495782365,16.2869,158.65,158.58,4.6219483]
[1724495782543,16.2869,158.65,158.59,4.6219483]
[1724495782745,16.2869,158.65,158.58,4.6219483]
[1724495782945,16.2869,158.65,158.59,4.6219483]
[1724495783165,16.2869,158.65,158.58,4.6219483]
[1724495783363,16.2869,158.65,158.59,4.6219483]
[1724495783566,16.2869,158.65,158.57,29.77857112]
[1724495783567,16.2869,158.65,158.58,4.6219483]
[1724495783768,16.2869,158.65,158.59,4.6219483]
[1724495783953,16.2869,158.65,158.58,4.6219483]
[1724495784153,16.2869,158.65,158.59,4.6219483]
[1724495784354,16.2869,158.65,158.57,29.77857112]
[1724495784564,16.2869,158.65,158.58,4.62297402]
[1724495784763,16.2869,158.65,158.59,4.62297402]
[1724495785068,16.2869,158.65,158.57,29.77857112]
[1724495785270,16.2869,158.65,158.58,4.62330157]
[1724495785572,16.2869,158.65,158.59,4.62330157]
[1724495785771,16.2869,158.65,158.57,29.77857112]
[1724495785961,16.2869,158.65,158.58,4.62357766]
[1724495786269,16.2869,158.65,158.59,4.62357766]
[1724495786571,16.2869,158.65,158.57,29.77857112]
[1724495786751,16.2869,158.65,158.58,4.62350731]
[1724495786951,16.2869,158.65,158.59,4.62350731]
[1724495787257,16.2869,158.65,158.57,29.77857112]
[1724495787459,16.2869,158.65,158.58,4.62407681]
[1724495787658,16.2869,158.65,158.59,14.40264793]
[1724495787859,16.2869,158.65,158.59,9.77857112]
[1724495791553,16.2869,158.65,158.57,29.77857112]
[1724495791761,16.2869,158.65,158.58,4.63043936]
[1724495792156,16.2869,158.65,158.59,4.63043936]
[1724495792355,16.2869,158.65,158.57,29.77857112]
[1724495792562,16.2869,158.65,158.58,4.63103388]
[1724495792777,16.2869,158.65,158.59,4.63103388]
[1724495793078,16.2869,158.65,158.57,9.77857112]
[1724495793260,16.2869,158.65,158.58,24.63249753]
[1724495793581,16.2869,158.65,158.59,4.63249753]
[1724495793766,16.2869,158.65,158.58,20.0]
[1724495793954,16.2869,158.65,158.59,5.89350322]
[1724495794155,16.2869,158.65,158.59,1.26097774]
[1724495794975,16.2869,158.65,158.53,45.12549]
[1724495795279,16.2869,158.65,158.56,9.77857112]
[1724495795460,16.2869,158.65,158.57,24.63184187]
[1724495795660,16.2869,158.65,158.58,4.63184187]
[1724495795862,16.2869,158.65,158.59,4.63184187]
[1724495796204,16.2869,158.65,158.57,20.0]
[1724495796388,16.2869,158.65,158.58,4.6320082]
[1724495796696,45.0,158.64,158.54,9.77857112]
[1724495796859,45.0,158.64,158.55,24.63179749]
[1724495797059,45.0,158.64,158.56,14.41036861]
[1724495797362,45.0,158.64,158.57,4.63179749]
[1724495797690,45.0,158.64,158.55,20.0]
[1724495797872,45.0,158.64,158.56,14.41061738]
[1724495798062,45.0,158.64,158.57,4.63204626]
[1724495798263,45.0,158.64,158.56,9.77857112]
[1724495798491,45.0,158.64,158.57,4.63268772]
[1724495798791,45.0,158.64,158.56,9.77857112]
[1724495798963,45.0,158.64,158.57,4.63199552]
[1724495799165,45.0,158.64,158.53,20.12549]
[1724495799166,21.6171,158.63,158.55,9.77857112]
[1724495799366,21.6171,158.63,158.56,4.6324499]
[1724495799562,21.6171,158.63,158.57,4.6324499]
[1724495799759,45.0,158.62,158.55,9.77857112]
[1724495799960,45.0,158.62,158.56,5.8938142]
[1724495800163,45.0,158.62,158.57,4.63265725]
[1724495800385,21.6171,158.63,158.56,1.26115695]
[1724495800564,21.6171,158.63,158.57,4.63196894]
[1724495800764,21.6171,158.63,158.56,1.26115695]
[1724495800994,21.6171,158.63,158.57,4.6317865]
[1724495801166,21.6171,158.63,158.56,1.26115695]
[1724495801366,21.6171,158.63,158.57,4.63078453]
[1724495803392,15.6297,158.62,158.57,4.63078453]
[1724495803567,15.6297,158.62,158.55,9.77857112]
[1724495803767,15.6297,158.62,158.56,4.63078453]
[1724495803988,15.6297,158.62,158.54,9.77857112]
[1724495804289,15.6297,158.62,158.55,20.0]
[1724495804492,15.6297,158.62,158.5,22.09725372]
[1724495804690,45.0,158.61,158.49,6.2919]
[1724495804991,45.0,158.61,158.54,9.77857112]
[1724495805185,45.0,158.61,158.49,6.2919]
[1724495805398,45.0,158.61,158.54,9.77857112]
[1724495807790,15.6297,158.6,158.52,9.77857112]
[1724495807967,51.2098,158.59,158.52,9.77857112]
[1724495808170,51.2098,158.59,158.48,7.97825168]
[1724495808495,51.2098,158.59,158.51,9.77857112]
[1724495811300,51.2098,158.59,158.52,1.26148559]
[1724495811596,6.2098,158.59,158.53,9.77857112]
[1724495815487,6.2098,158.59,158.51,9.77857112]
[1724495818299,15.6297,158.58,158.51,9.77857112]
[1724495818502,15.6297,158.56,158.47,6.20455208]
[1724495818678,15.6297,158.56,158.46,0.12549]
[1724495818999,15.6297,158.56,158.5,9.77857112]
[1724495819873,15.6297,158.56,158.46,45.25098]
[1724495820079,15.6297,158.56,158.5,9.77857112]
[1724495821781,15.6297,158.56,158.52,9.77857112]
[1724495822698,15.6297,158.56,158.46,45.25098]
[1724495822891,15.6297,158.56,158.5,9.77857112]
[1724495823107,15.6297,158.56,158.51,1.26157024]
[1724495826305,15.6297,158.56,158.5,9.77857112]
[1724495826608,15.6297,158.56,158.46,53.22923168]
[1724495826813,15.6297,158.56,158.47,20.0]
[1724495827108,15.6297,158.56,158.49,9.77857112]
[1724495829912,21.9365,158.56,158.49,9.77857112]
[1724495830104,45.0,158.55,158.49,9.77857112]
[1724495830304,15.6297,158.56,158.5,1.261691]
[1724495830607,15.6297,158.56,158.49,9.77857112]
[1724495832313,15.6297,158.56,158.5,1.26169355]
[1724495832689,15.6297,158.56,158.49,9.77857112]
[1724495834502,15.6297,158.56,158.5,1.26162377]
[1724495834908,15.6297,158.56,158.49,9.77857112]
[1724495836118,15.6297,158.56,158.47,3.55654055]
[1724495836412,15.6297,158.56,158.49,9.77857112]
[1724495837112,15.6297,158.56,158.46,0.12549]
[1724495837304,15.6297,158.56,158.49,9.77857112]
[1724495837514,45.0,158.55,158.49,9.77857112]
[1724495837996,45.0,158.55,158.46,4.81974723]
[1724495838199,45.0,158.55,158.46,21.26165913]
[1724495838499,45.0,158.55,158.49,9.77857112]
[1724495839715,15.6297,158.56,158.49,9.77857112]
[1724495840916,15.6297,158.56,158.48,1.26173702]
[1724495841413,15.6297,158.56,158.49,9.77857112]
[1724495843002,15.6297,158.56,158.47,3.5580881]
[1724495843207,15.6297,158.56,158.48,3.5580881]
[1724495843521,15.6297,158.56,158.5,9.77857112]
[1724495847713,15.6297,158.56,158.48,9.77857112]
[1724495849121,15.6297,158.56,158.49,1.26172782]
[1724495850323,15.6297,158.56,158.5,9.77857112]
[1724495862020,15.6297,158.56,158.5,9.77857112]
[1724495862418,15.6297,158.56,158.55,9.77857112]
[1724495864140,15.6297,158.56,158.55,14.42815623]
[1724495864310,15.6297,158.56,158.55,9.77857112]
[1724495865016,15.6297,158.56,158.55,14.42815623]
[1724495865211,15.6297,158.56,158.55,9.77857112]
[1724495867107,15.6297,158.56,158.43,31.21278555]
[1724495867337,15.6297,158.56,158.5,9.77857112]
[1724495867509,15.6297,158.56,158.51,1.26151363]
[1724495868712,15.6297,158.56,158.52,9.77857112]
[1724495869121,15.6297,158.56,158.49,4.66024292]
[1724495869122,15.6297,158.56,158.54,9.77857112]
[1724495871544,6.6042,158.55,158.49,4.66958608]
[1724495871749,45.0,158.54,158.45,14.4481572]
[1724495872042,45.0,158.54,158.45,9.77857112]
[1724495872249,6.308,158.53,158.43,6.58454232]
[1724495872454,15.4628,158.53,158.47,9.77857112]
[1724495873645,15.4628,158.53,158.48,1.26179274]
[1724495874144,15.4628,158.53,158.49,9.77857112]
[1724495876243,15.4628,158.53,158.43,6.58454232]
[1724495876439,15.4628,158.53,158.47,9.77857112]
[1724495877042,15.4628,158.53,158.44,0.25098]
[1724495877246,15.4628,158.53,158.46,9.77857112]
[1724495879153,15.4628,158.53,158.47,1.57933193]
[1724495879333,15.4628,158.53,158.48,1.57933193]
[1724495879531,15.4628,158.53,158.49,1.57933193]
[1724495879857,45.0,158.52,158.5,1.57933193]
[1724495880151,45.0,158.52,158.51,1.57933193]
[1724495880892,15.4628,158.53,158.51,1.57933193]
[1724495881028,15.4628,158.53,158.52,1.57933193]
[1724495881229,60.4628,158.53,158.46,9.77857112]
[1724495881425,60.4628,158.53,158.47,1.57937184]
[1724495881625,60.4628,158.53,158.48,1.57937184]
[1724495881825,15.4628,158.53,158.5,9.77857112]
[1724495882035,15.4628,158.53,158.52,9.77857112]
[1724495882263,15.4628,158.53,158.52,11.35794296]
[1724495883757,15.4628,158.53,158.52,11.3577285]
[1724495884061,6.6042,158.55,158.52,11.3577285]
[1724495884240,6.6042,158.55,158.53,1.57915738]
[1724495884448,15.7005,158.57,158.54,11.3577285]
[1724495884661,15.7005,158.57,158.55,1.57915738]
[1724495884860,15.7005,158.57,158.56,1.57897448]
[1724495888736,8.3034,158.65,158.56,1.57897448]
[1724495888737,15.7005,158.61,158.56,11.3575456]
[1724495888936,15.7005,158.61,158.58,9.77857112]
[1724495889169,15.7005,158.61,158.59,1.57897448]
[1724495889350,15.7005,158.61,158.58,9.77857112]
[1724495889552,15.7005,158.61,158.59,1.57853516]
[1724495889740,15.7005,158.61,158.58,9.77857112]
[1724495889943,15.7005,158.61,158.59,1.57850136]
[1724495890345,15.7005,158.61,158.58,9.77857112]
[1724495892441,15.7005,158.61,158.56,9.77857112]
[1724495893746,15.7005,158.61,158.5,8.08767884]
[1724495893943,15.7005,158.61,158.56,9.77857112]
[1724495897069,15.7005,158.61,158.54,9.77857112]
[1724495906578,15.7005,158.61,158.56,9.77857112]
[1724495910073,15.7005,158.61,158.58,9.77857112]
[1724495912855,6.6542,158.63,158.58,9.77857112]
[1724495913266,6.6542,158.63,158.57,9.77857112]
[1724495918418,6.6542,158.63,158.59,9.77857112]
[1724495921085,2.0,158.65,158.59,9.77857112]